bitfinex/quotes_ETHUSD_20260214
["timestamp","ask_amount","ask_price","bid_price","bid_amount"]
[1771085962513,1.20418091,2076.1,2075.0,1.68056298]
[1771085963611,1.20418091,2076.1,2075.1,0.47574371]
[1771085963914,1.20418091,2076.1,2075.3,0.47574371]
[1771085964912,1.20418091,2076.1,2075.4,1.20458706]
[1771085965315,0.49022566,2076.0,2075.2,2.88066347]
[1771085965991,1.20418091,2076.1,2075.2,2.88066347]
[1771085966310,1.69440657,2076.1,2075.2,2.88066347]
[1771085966689,0.49022566,2076.0,2075.2,2.88069894]
[1771085966888,0.49022566,2076.0,2075.2,1.676]
[1771085967093,1.20429693,2075.9,2075.2,1.676]
[1771085967292,1.20429693,2075.9,2075.2,2.88069349]
[1771085967688,1.20429693,2075.9,2075.2,2.88070224]
[1771085967919,1.20429693,2075.9,2075.0,4.81915755]
[1771085968116,1.20428174,2076.0,2075.1,0.47574371]
[1771085971834,1.20428174,2076.0,2075.2,1.20470316]
[1771085972008,1.20428174,2076.0,2075.2,1.68044687]
[1771085972329,4.81695568,2076.1,2075.2,1.68044687]
[1771085972330,1.20422572,2076.1,2075.2,1.68044687]
[1771085972631,1.20422572,2076.1,2075.3,0.47574371]
[1771085973534,1.3,2076.2,2075.3,0.47574371]
[1771085973932,1.3,2076.2,2075.5,0.47574371]
[1771085974437,0.8681,2076.7,2075.7,0.47574371]
[1771085974647,2.07194085,2076.7,2075.7,0.47574371]
[1771085974818,0.49022566,2076.5,2075.4,3.74258706]
[1771085975002,2.56216651,2076.7,2075.5,0.47574371]
[1771085976319,0.49022566,2076.6,2075.6,1.20447099]
[1771085977246,0.49132566,2076.4,2075.6,1.20447099]
[1771085978438,1.69429058,2076.3,2075.5,1.20450348]
[1771085978945,0.49022566,2076.2,2075.1,0.867]
[1771085979105,0.49022566,2076.2,2075.2,0.47574371]
[1771085979716,1.3,2076.0,2075.2,0.47574371]
[1771085979918,0.49022566,2075.9,2075.1,2.07173198]
[1771085980935,1.20435494,2075.8,2075.1,0.867]
[1771085981144,0.46688269,2075.6,2074.9,0.001]
[1771085981519,0.46688269,2075.6,2074.9,1.20586288]
[1771085981835,1.78188269,2075.7,2074.9,0.001]
[1771085982226,1.78188269,2075.7,2074.9,1.20587361]
[1771085982936,1.20447099,2075.6,2074.9,0.001]
[1771085983337,0.49336992,2075.5,2074.9,0.001]
[1771085984844,0.49336992,2075.3,2074.9,0.001]
[1771085986732,1.20458706,2075.4,2074.9,0.001]
[1771085986935,0.49336992,2075.4,2074.9,0.001]
[1771085987133,0.49336992,2075.4,2074.7,0.001]
[1771085988966,1.20464511,2075.3,2074.7,0.001]
[1771085989127,1.69801503,2075.3,2074.7,0.001]
[1771085990856,1.20464511,2075.3,2074.7,0.001]
[1771085991062,0.49336992,2075.5,2074.7,0.001]
[1771085993266,0.49336992,2075.3,2074.7,0.001]
[1771085994156,1.69795698,2075.4,2074.7,0.001]
[1771085994664,0.49336992,2075.3,2074.7,0.001]
[1771085995648,1.20470316,2075.2,2074.7,0.001]
[1771085997358,1.69807308,2075.2,2074.7,0.001]
[1771085997757,0.49336992,2075.1,2074.7,0.001]
[1771085998967,0.49336992,2075.1,2074.4,0.001]
[1771085999168,0.49336992,2075.1,2073.2,4.82322949]
[1771085999169,0.49336992,2074.9,2073.0,34.82346131]
[1771085999370,0.49336992,2074.9,2073.6,0.46246843]
[1771085999686,0.49336992,2074.9,2073.2,0.46246843]
[1771085999890,0.49336992,2074.7,2073.3,1.66823436]
[1771086000112,0.493,2074.6,2073.5,0.46246843]
[1771086000404,0.49336992,2074.5,2073.4,0.90470474]
[1771086000982,0.49336992,2074.5,2073.4,1.36717317]
[1771086001356,0.49336992,2074.6,2073.5,0.46246843]
[1771086002056,2.62293541,2074.8,2073.7,0.46246843]
[1771086002665,2.62293541,2074.8,2073.8,0.90470474]
[1771086002666,0.49336992,2074.7,2073.8,0.90470474]
[1771086002872,0.49336992,2074.7,2073.7,0.90470474]
[1771086003073,0.49336992,2074.7,2073.7,1.36717317]
[1771086003669,1.20493541,2074.8,2073.8,0.46246843]
[1771086003884,0.96453702,2074.7,2073.7,0.90470474]
[1771086004080,1.69842149,2074.6,2073.7,2.11023414]
[1771086004698,1.69842149,2074.6,2073.7,0.90470474]
[1771086004885,1.69842149,2074.6,2073.7,2.11027857]
[1771086005071,1.69842149,2074.6,2073.7,0.90470474]
[1771086005270,0.49336992,2074.5,2073.4,0.001]
[1771086005474,0.49336992,2074.5,2073.6,0.90470474]
[1771086005770,7.02189905,2074.5,2073.4,0.001]
[1771086005960,0.49336992,2074.4,2073.4,0.90570474]
[1771086006163,0.49336992,2074.2,2073.4,0.90570474]
[1771086006363,0.49336992,2074.0,2073.4,0.90570474]
[1771086006558,2.07521211,2074.1,2073.4,0.90570474]
[1771086006559,2.07521211,2074.1,2073.4,0.001]
[1771086006760,2.07521211,2074.1,2073.4,1.20674283]
[1771086007372,2.07521211,2074.1,2073.4,0.001]
[1771086007776,2.56858203,2074.1,2073.4,0.001]
[1771086008996,1.20540019,2074.0,2073.4,0.001]
[1771086009893,3.28059082,2074.1,2073.4,0.001]
[1771086010299,2.07521211,2074.1,2073.4,0.001]
[1771086010598,3.77393078,2074.1,2073.4,0.001]
[1771086012496,0.49336992,2074.0,2073.4,0.001]
[1771086013177,1.20545831,2073.9,2073.4,0.001]
[1771086013381,0.45178799,2073.8,2073.2,0.001]
[1771086014098,0.45178799,2073.8,2072.5,0.48063652]
[1771086014275,0.868,2073.8,2072.5,0.48063652]
[1771086014467,0.45178799,2073.7,2072.2,0.48063652]
[1771086014670,0.45178799,2073.7,2071.8,0.1370497]
[1771086014671,0.45178799,2073.5,2071.9,0.48063652]
[1771086014870,1.364,2073.6,2071.9,0.48063652]
[1771086014871,0.45178799,2073.3,2071.9,0.48063652]
[1771086015172,0.45178799,2073.3,2072.0,1.2065637]
[1771086015173,1.65771148,2073.1,2072.0,1.2065637]
[1771086015493,2.01673437,2073.1,2072.0,1.68720022]
[1771086015695,0.45178799,2073.0,2072.0,1.2065637]
[1771086016012,1.56494638,2073.1,2072.0,1.68720022]
[1771086017679,1.56494638,2073.1,2072.1,0.48063652]
[1771086017880,2.01673437,2073.1,2072.1,0.48063652]
[1771086018224,0.45178799,2073.0,2071.8,1.34370002]
[1771086018771,0.45178799,2072.8,2071.8,0.1370497]
[1771086018972,0.45178799,2072.6,2072.1,0.001]
[1771086019192,0.45178799,2072.6,2071.8,0.1370497]
[1771086019482,0.45178799,2072.4,2071.8,0.1370497]
[1771086019884,0.45178799,2072.4,2071.9,0.001]
[1771086020111,1.20627261,2072.5,2071.9,0.001]
[1771086020886,3.45435355,2072.7,2071.9,0.001]
[1771086021089,2.24815593,2072.7,2071.9,0.48163652]
[1771086021319,3.45432976,2072.7,2071.9,0.48163652]
[1771086021490,3.45432976,2072.7,2071.9,0.001]
[1771086021689,3.90611775,2072.7,2071.9,0.001]
[1771086021996,3.45432976,2072.7,2071.9,0.48163652]
[1771086022596,3.45432976,2072.7,2071.9,0.001]
[1771086023105,3.90637573,2072.7,2071.9,0.001]
[1771086023714,1.78132976,2072.7,2071.9,0.48290373]
[1771086023888,0.57515593,2072.7,2071.9,0.48290373]
[1771086024092,1.78131982,2072.7,2071.9,0.48290373]
[1771086024313,0.45204597,2072.6,2071.9,0.001]
[1771086025424,2.08304597,2072.6,2071.9,0.001]
[1771086025738,2.08304597,2072.6,2071.8,0.1370497]
[1771086025739,0.45204597,2072.4,2071.8,0.1370497]
[1771086025935,0.45204597,2072.3,2070.6,0.48190373]
[1771086026689,0.45204597,2072.3,2069.9,1.20778781]
[1771086026690,0.45204597,2072.3,2070.0,0.48190373]
[1771086026897,0.45204597,2072.3,2070.4,0.48190373]
[1771086027124,0.45204597,2072.3,2070.5,2.519]
[1771086027324,0.45204597,2072.1,2070.6,0.48190373]
[1771086027624,7.02189905,2072.3,2071.0,0.48190373]
[1771086027625,1.20638903,2072.3,2071.0,0.48190373]
[1771086028000,1.658435,2072.3,2071.0,0.48190373]
[1771086028220,1.658435,2072.3,2071.1,0.48190373]
[1771086029097,0.45204597,2072.2,2070.9,1.20720459]
[1771086029846,0.45204597,2072.2,2070.8,1.68912471]
[1771086029847,0.45204597,2072.0,2070.8,1.68912471]
[1771086030345,0.45204597,2072.0,2070.6,4.82936286]
[1771086030537,0.45204597,2072.0,2070.6,1.2073795]
[1771086031251,0.45204597,2071.8,2070.6,1.2073795]
[1771086031639,0.45204597,2071.8,2070.5,1.20739778]
[1771086031820,0.45204597,2071.6,2070.3,4.8301258]
[1771086032221,0.45204597,2071.6,2070.3,1.20755446]
[1771086032952,0.45204597,2071.4,2069.6,0.48190373]
[1771086033122,0.45204597,2071.4,2069.8,0.48190373]
[1771086033321,0.45204597,2071.4,2069.8,0.43190373]
[1771086033620,0.45204597,2071.4,2070.4,0.001]
[1771086033821,1.20702974,2071.2,2070.4,0.001]
[1771086034027,1.77158367,2071.2,2070.4,0.001]
[1771086036767,1.32104597,2072.0,2070.6,0.38488345]
[1771086036932,0.45164314,2071.7,2070.8,0.38488345]
[1771086037458,0.45164314,2071.7,2070.9,1.54]
[1771086037629,0.45164314,2071.7,2070.5,0.38488345]
[1771086037828,0.90368911,2071.7,2070.6,1.822]
[1771086038659,2.11046544,2071.7,2070.7,0.525]
[1771086039235,2.11046544,2071.7,2070.6,2.0763795]
[1771086039236,2.11046544,2071.7,2070.6,1.2073795]
[1771086039662,2.11046544,2071.7,2070.7,1.648]
[1771086041068,2.11046544,2071.7,2070.8,1.20726289]
[1771086041432,2.11046544,2071.7,2070.7,1.648]
[1771086041638,2.11046544,2071.7,2070.7,2.855297]
[1771086041864,2.11046544,2071.7,2070.7,1.207297]
[1771086042081,1.3,2071.5,2070.7,2.853297]
[1771086042378,1.3,2071.5,2070.4,0.001]
[1771086042584,0.46363977,2071.4,2070.5,1.20743781]
[1771086042780,0.46363977,2071.4,2070.4,0.001]
[1771086042953,0.47009853,2071.2,2070.4,0.001]
[1771086043859,0.47009853,2071.2,2070.4,1.20848306]
[1771086044981,1.20708802,2071.1,2070.4,0.001]
[1771086045559,0.47009853,2071.0,2070.4,0.001]
[1771086045971,1.20707264,2071.2,2070.4,0.001]
[1771086046183,0.47009853,2071.1,2070.4,0.001]
[1771086047079,4.8280327,2071.3,2070.4,0.001]
[1771086047258,1.20697146,2071.3,2070.4,0.001]
[1771086047462,0.47009853,2071.2,2070.4,0.001]
[1771086049289,0.47009853,2071.0,2070.4,0.001]
[1771086050578,0.47009853,2071.3,2070.4,0.001]
[1771086050772,1.20697146,2071.3,2070.4,0.001]
[1771086050975,1.67706999,2071.3,2070.4,0.001]
[1771086051691,0.47009853,2071.2,2070.4,0.001]
[1771086051892,1.20698184,2071.3,2070.4,0.001]
[1771086052192,1.20696036,2071.4,2070.4,0.001]
[1771086052395,1.20696036,2071.4,2070.4,0.38588345]
[1771086052589,1.3,2071.1,2070.4,0.38588345]
[1771086053088,1.20686746,2071.5,2070.4,0.38588345]
[1771086053268,1.20685493,2071.5,2070.5,1.59232126]
[1771086053469,1.67695346,2071.5,2070.5,1.20743781]
[1771086053678,0.47009853,2071.4,2070.6,1.639]
[1771086053877,0.47009853,2071.4,2070.5,2.84643781]
[1771086054402,0.47009853,2071.4,2070.5,1.20743781]
[1771086054700,0.47009853,2071.4,2070.5,2.84643781]
[1771086054899,1.20685493,2071.5,2070.5,3.23132126]
[1771086055671,5.29742883,2071.6,2070.5,3.23132126]
[1771086056093,0.47009853,2071.5,2070.5,1.20743781]
[1771086056996,0.47009853,2071.5,2070.6,1.638]
[1771086057500,0.47009853,2071.5,2070.4,5.69975126]
[1771086057501,0.47009853,2071.5,2070.4,1.20846636]
[1771086057709,0.47009853,2071.3,2070.4,0.001]
[1771086057912,0.47009853,2071.3,2070.4,1.519]
[1771086058074,0.47009853,2071.3,2070.4,0.001]
[1771086058277,0.47009853,2071.3,2070.4,1.638]
[1771086059573,0.47009853,2071.1,2070.4,0.001]
[1771086059987,0.47009853,2071.1,2069.7,1.20790452]
[1771086060189,0.47009853,2071.1,2069.7,2.84390452]
[1771086060599,0.47009853,2071.1,2069.8,0.38488345]
[1771086060812,1.20702974,2071.2,2069.8,0.38488345]
[1771086061100,1.20702974,2071.2,2069.7,2.84390452]
[1771086061101,1.67712827,2071.2,2070.1,0.38588345]
[1771086061681,1.67712827,2071.2,2070.2,1.20761279]
[1771086061865,1.67712827,2071.2,2070.3,0.494]
[1771086062074,3.69401406,2071.3,2070.3,0.494]
[1771086062574,1.20694068,2071.4,2070.4,0.38488345]
[1771086063387,1.67703921,2071.4,2070.4,0.38488345]
[1771086063704,0.45274314,2071.7,2070.6,0.38488345]
[1771086064072,2.12958616,2071.7,2070.6,0.38488345]
[1771086064268,0.45274314,2071.7,2070.7,30.0]
[1771086064514,0.45274314,2071.7,2071.0,0.38488345]
[1771086064717,0.5,2072.3,2071.1,1.634]
[1771086065021,0.5,2072.3,2071.2,2.504]
[1771086065914,0.5,2072.7,2071.3,1.20697146]
[1771086066613,0.5011,2073.0,2071.4,30.0]
[1771086067187,0.0011,2073.0,2071.5,0.18685624]
[1771086067715,0.0011,2073.0,2071.9,30.0]
[1771086067891,0.0011,2073.0,2072.1,30.0]
[1771086068389,0.0011,2073.0,2072.2,2.506]
[1771086069020,0.0011,2073.0,2072.3,30.0]
[1771086069588,0.0011,2073.2,2072.3,30.0]
[1771086069811,0.0011,2073.2,2072.5,30.0]
[1771086070011,0.5,2073.9,2072.5,30.0]
[1771086070210,1.2062727,2074.4,2072.8,0.48572124]
[1771086070398,1.20626871,2074.4,2073.1,30.0]
[1771086070599,1.20626871,2074.4,2072.7,0.18685624]
[1771086070600,0.47009853,2073.9,2071.8,1.20662194]
[1771086070801,7.63843704,2074.0,2071.9,0.48572124]
[1771086070802,0.47009853,2073.5,2071.9,0.48572124]
[1771086071006,0.47009853,2073.4,2071.9,0.48572124]
[1771086071201,0.47009853,2073.4,2072.0,0.494]
[1771086071522,0.47009853,2073.3,2072.0,0.494]
[1771086071823,1.20586532,2073.2,2072.1,1.20650547]
[1771086073435,1.20586532,2073.2,2072.2,1.645]
[1771086073801,1.20586532,2073.2,2072.3,1.20638903]
[1771086074596,1.20586532,2073.2,2072.4,1.645]
[1771086075004,1.66981468,2073.2,2072.4,1.645]
[1771086075224,1.20586532,2073.2,2072.4,1.645]
[1771086076029,4.82346131,2073.4,2072.4,1.645]
[1771086076214,5.28741067,2073.4,2072.4,2.85133054]
[1771086077900,0.46394936,2073.3,2072.4,2.85133028]
[1771086078096,0.46394936,2073.5,2072.4,2.85133028]
[1771086078507,0.46394936,2073.5,2072.4,1.20633028]
[1771086078695,0.46394936,2073.5,2072.3,2.67234453]
[1771086078898,0.46394936,2073.5,2072.3,1.466]
[1771086079322,0.46394936,2073.5,2072.3,2.67238542]
[1771086079526,0.46394936,2073.5,2072.3,2.67238349]
[1771086080039,0.46394936,2073.5,2072.0,2.8485637]
[1771086080448,0.46394936,2073.3,2072.0,2.8485637]
[1771086080747,0.46394936,2073.3,2072.1,0.4973529]
[1771086081850,1.20574901,2073.4,2072.1,0.4973529]
[1771086082545,4.82299604,2073.5,2072.3,0.4973529]
[1771086082751,5.2869454,2073.5,2072.3,0.4973529]
[1771086084330,0.46394936,2073.4,2072.3,0.4973529]
[1771086085051,1.20580716,2073.3,2072.4,1.20633082]
[1771086085214,1.20580716,2073.3,2072.4,1.70368372]
[1771086085920,1.66975652,2073.3,2072.5,1.639]
[1771086086251,1.66975652,2073.3,2072.3,1.20635677]
[1771086086439,1.66975652,2073.3,2072.4,1.638]
[1771086087244,1.66975652,2073.3,2072.1,5.32337073]
[1771086087416,1.66975652,2073.3,2072.2,3.71344725]
[1771086088033,1.66975652,2073.3,2072.2,1.20644725]
[1771086088235,0.46394936,2073.2,2072.3,1.637]
[1771086089358,1.20592349,2073.1,2072.2,1.20638903]
[1771086089566,1.20592349,2073.1,2072.3,1.637]
[1771086089853,1.66987285,2073.1,2072.4,1.637]
[1771086090926,0.46394936,2073.0,2072.0,1.20654064]
[1771086091126,0.46394936,2073.0,2072.0,2.84254064]
[1771086091360,0.46394936,2072.8,2071.9,1.20662194]
[1771086091524,0.46394936,2072.8,2071.9,2.84262194]
[1771086091924,1.20603984,2072.9,2072.0,0.4973529]
[1771086092745,1.6699892,2072.9,2072.0,0.4973529]
[1771086092931,0.46394936,2072.8,2071.9,2.84262194]
[1771086093726,1.20615622,2072.7,2071.9,2.84262194]
[1771086093945,1.20615622,2072.7,2071.9,1.20662073]
[1771086094251,1.20615622,2072.7,2071.8,0.4983529]
[1771086094252,0.46394936,2072.6,2071.8,0.001]
[1771086094461,0.46394936,2072.4,2071.2,1.65366834]
[1771086094663,0.46394936,2072.4,2071.1,1.7020743]
[1771086094865,0.46394936,2072.4,2071.1,0.001]
[1771086095463,0.1024,2072.3,2071.1,0.001]
[1771086095669,0.46394936,2071.9,2070.9,0.001]
[1771086095869,0.46394936,2071.8,2070.9,0.001]
[1771086097172,0.522,2071.9,2070.9,0.001]
[1771086097758,1.67062954,2071.8,2070.9,0.001]
[1771086097968,0.46394936,2071.7,2070.9,0.001]
[1771086099758,0.46394936,2071.5,2070.9,0.001]
[1771086100165,0.46394936,2071.4,2069.8,2.1273529]
[1771086100463,0.46394936,2071.4,2069.9,0.4973529]
[1771086101267,0.46394936,2071.4,2070.0,1.363]
[1771086101757,0.46394936,2071.4,2069.9,0.4973529]
[1771086101958,0.45687499,2071.2,2070.0,1.70172946]
[1771086102368,0.45687499,2071.2,2070.0,2.83672946]
[1771086102658,0.45687499,2071.2,2070.0,1.20772946]
[1771086104068,1.20708802,2071.1,2069.9,4.83102555]
[1771086104269,1.20707361,2071.2,2070.0,0.45889063]
[1771086104468,1.20701425,2071.3,2070.0,0.45889063]
[1771086104875,1.67152891,2071.3,2070.0,0.45889063]
[1771086105071,1.20701425,2071.3,2070.0,0.45889063]
[1771086106966,1.20690872,2071.5,2070.2,0.45889063]
[1771086107167,1.20690872,2071.5,2070.4,0.45889063]
[1771086108074,1.20690872,2071.5,2070.4,1.32789063]
[1771086108384,1.20690872,2071.5,2070.5,0.45889063]
[1771086109506,1.20690872,2071.5,2070.6,1.2073795]
[1771086111797,0.46451466,2071.4,2070.4,3.70145154]
[1771086112808,0.46451466,2071.4,2070.3,1.20751204]
[1771086113105,0.46451466,2071.4,2070.0,6.38568951]
[1771086113478,0.46451466,2071.2,2070.0,2.76272946]
[1771086113773,0.46451466,2071.0,2069.6,0.004]
[1771086113976,0.46451466,2070.6,2069.6,0.004]
[1771086114278,0.46451466,2070.5,2069.6,0.004]
[1771086115302,0.46451466,2070.1,2069.4,0.001]
[1771086115488,0.46451466,2070.1,2069.1,0.91682165]
[1771086115489,0.1024,2070.2,2069.1,0.91682165]
[1771086115696,0.46451466,2070.1,2069.1,0.91682165]
[1771086115894,0.46451466,2069.9,2069.1,0.91682165]
[1771086117477,1.20778781,2069.9,2069.1,0.91682165]
[1771086117805,1.20778781,2069.9,2069.1,2.12507049]
[1771086118395,1.67230247,2069.9,2069.1,0.85682165]
[1771086118903,1.221,2070.0,2069.1,2.52395309]
[1771086119306,2.42873517,2070.0,2069.5,0.001]
[1771086119476,1.3,2069.8,2069.5,0.001]
[1771086120715,1.20755446,2070.3,2069.5,0.001]
[1771086121084,0.46451466,2070.2,2069.5,0.001]
[1771086121611,1.20767112,2070.1,2069.1,0.85682165]
[1771086121909,0.46451466,2069.8,2068.5,0.869]
[1771086122113,0.46451466,2069.8,2068.5,2.02760156]
[1771086122480,3.77607112,2070.1,2068.6,0.45889063]
[1771086122481,4.13818578,2070.1,2068.6,0.45889063]
[1771086122887,3.67367112,2070.1,2068.6,0.45889063]
[1771086123587,3.67367112,2070.1,2068.7,1.20848842]
[1771086123919,4.13818578,2070.1,2068.8,2.84589063]
[1771086124109,3.67368454,2070.1,2068.9,0.45889063]
[1771086124306,2.466,2070.1,2068.9,0.45889063]
[1771086124504,1.3,2069.9,2068.9,0.45889063]
[1771086124901,1.3,2069.9,2069.0,2.49]
[1771086125282,1.3,2069.9,2068.9,2.94789063]
[1771086125700,2.50781583,2069.9,2069.0,1.20831319]
[1771086126684,2.97233049,2069.9,2068.7,1.20848842]
[1771086126886,0.46451466,2069.8,2068.7,1.20848842]
[1771086127790,1.20789058,2069.8,2068.7,0.45889063]
[1771086129220,2.50781485,2069.9,2068.7,0.45889063]
[1771086129905,0.46451466,2069.8,2068.8,1.20843]
[1771086130110,2.50781485,2069.9,2068.8,1.66732063]
[1771086130437,2.50781485,2069.9,2068.9,0.45889063]
[1771086131090,2.97232951,2069.9,2068.8,1.20843]
[1771086131626,0.46451466,2069.8,2068.8,1.20843]
[1771086131790,1.20790452,2069.7,2068.7,2.82646003]
[1771086132519,1.20790452,2069.7,2068.7,2.82546003]
[1771086133013,1.65882594,2069.7,2068.7,1.20846003]
[1771086134225,1.2078739,2069.8,2068.8,0.47681409]
[1771086136821,1.3,2069.9,2069.3,0.003]
[1771086136989,2.466,2070.1,2069.3,0.003]
[1771086136990,1.2077034,2070.1,2069.3,2.09381409]
[1771086137190,1.2077034,2070.1,2069.3,1.617]
[1771086137395,1.2077034,2070.1,2069.3,0.003]
[1771086137396,0.45092142,2070.0,2069.3,0.003]
[1771086138991,1.20778781,2069.9,2069.3,0.003]
[1771086140226,1.3,2069.7,2069.3,0.003]
[1771086141104,1.20771731,2070.1,2069.3,0.47981409]
[1771086141434,1.20771731,2070.1,2069.3,0.003]
[1771086141794,1.65863873,2070.1,2069.3,0.003]
[1771086142725,1.20771731,2070.1,2069.3,0.003]
[1771086142926,1.2076419,2070.2,2069.3,0.47981409]
[1771086143129,1.2076419,2070.2,2069.3,1.687922]
[1771086143317,1.65856332,2070.2,2069.3,0.003]
[1771086143526,1.65856332,2070.2,2069.3,1.21112352]
[1771086144033,1.65856332,2070.2,2069.3,1.21113718]
[1771086144833,1.2076419,2070.2,2069.3,0.003]
[1771086147255,1.2076419,2070.2,2069.3,0.47981409]
[1771086147405,3.66860065,2070.3,2069.3,0.47981409]
[1771086147612,2.07760065,2070.3,2069.3,0.47981409]
[1771086147824,2.07755529,2070.3,2069.3,0.47981409]
[1771086148129,2.07756141,2070.3,2069.3,0.47981409]
[1771086149317,0.87,2070.3,2069.4,1.20807963]
[1771086149539,0.87,2070.3,2069.5,0.47681409]
[1771086149854,0.0011,2070.4,2069.7,0.47681409]
[1771086149855,1.20859648,2070.4,2069.7,0.47681409]
[1771086150556,0.0011,2070.4,2069.7,0.47681409]
[1771086150914,1.20859987,2070.4,2069.7,0.47681409]
[1771086151316,0.0011,2070.4,2069.8,1.20784616]
[1771086151724,0.0011,2070.4,2069.8,1.68466025]
[1771086152132,0.0011,2070.4,2069.5,2.08081409]
[1771086153944,0.0011,2070.4,2069.6,1.68477698]
[1771086154151,0.0011,2070.4,2069.7,0.47681409]
[1771086155860,0.0011,2070.4,2069.8,1.68466025]
[1771086156152,0.0011,2070.4,2069.8,1.20784616]
[1771086157757,0.0011,2070.4,2069.9,0.47681409]
[1771086158056,0.0011,2070.4,2070.0,1.20772946]
[1771086158360,0.0011,2070.4,2070.0,1.68454355]
[1771086158657,0.0011,2070.4,2070.1,0.47681409]
[1771086158851,0.0011,2070.7,2070.1,0.47681409]
[1771086159764,0.45202142,2071.3,2070.2,2.475]
[1771086159937,1.20702974,2071.2,2070.2,2.81261279]
[1771086160138,1.20702974,2071.2,2070.2,3.28942688]
[1771086160453,1.65903553,2071.3,2070.2,3.28942688]
[1771086160637,1.65903553,2071.3,2070.3,0.47681409]
[1771086161058,1.20807394,2071.3,2070.3,0.47681409]
[1771086161567,1.68310654,2071.3,2070.3,0.47681409]
[1771086161755,0.4750326,2071.2,2070.4,1.604]
[1771086161955,1.20708802,2071.1,2070.4,1.604]
[1771086162155,1.20708802,2071.1,2070.4,2.81148744]
[1771086164372,1.2081075,2071.3,2070.4,2.81148744]
[1771086164752,1.67055026,2071.3,2070.3,1.68402162]
[1771086164960,1.67055026,2071.3,2070.4,0.47649724]
[1771086166791,1.2081075,2071.3,2070.5,1.20743781]
[1771086166959,1.2081075,2071.3,2070.5,1.68393505]
[1771086168082,0.0011,2071.3,2070.5,1.68393505]
[1771086168391,0.0011,2071.3,2070.6,0.47649724]
[1771086168988,0.0011,2071.3,2070.8,0.47649724]
[1771086169187,0.0011,2071.3,2070.9,2.07649724]
[1771086169395,0.0011,2071.3,2071.0,0.47649724]
[1771086169562,0.0011,2071.3,2070.9,1.6]
[1771086170163,0.0011,2071.3,2070.9,2.07649724]
[1771086171190,0.0011,2071.3,2070.6,5.30578202]
[1771086171490,0.0011,2071.3,2070.5,1.6]
[1771086171686,0.46354276,2071.3,2070.5,1.6]
[1771086172268,0.0011,2071.3,2070.5,1.6]
[1771086172767,0.46354276,2071.3,2070.4,1.20749613]
[1771086172967,0.46354276,2071.3,2070.4,2.80649613]
[1771086173674,1.20810693,2071.3,2070.4,3.28299337]
[1771086173870,1.20810693,2071.3,2070.5,0.47649724]
[1771086174281,1.20809353,2071.3,2070.4,2.80649613]
[1771086174481,1.20809353,2071.3,2070.4,3.28299337]
[1771086174769,1.20807683,2071.3,2070.4,3.28299337]
[1771086176398,0.0011,2071.3,2070.5,0.47649724]
[1771086177896,0.0011,2071.3,2070.6,1.68387674]
[1771086178267,0.0011,2071.3,2070.7,1.597]
[1771086178465,0.46354276,2071.3,2070.3,1.68401177]
[1771086178682,0.46354276,2071.3,2070.4,1.597]
[1771086179866,0.46354276,2071.3,2070.2,1.20761279]
[1771086179867,1.20702974,2071.2,2070.2,1.20761279]
[1771086180193,0.46244276,2071.1,2070.0,1.2076918]
[1771086180366,0.46244276,2071.1,2069.8,0.869]
[1771086180565,0.46244276,2071.1,2069.8,3.67283675]
[1771086180773,0.46244276,2071.1,2069.8,2.94149724]
[1771086180962,0.46244276,2071.1,2069.8,4.14934207]
[1771086181385,0.46244276,2071.1,2069.9,0.47649724]
[1771086181779,1.2071463,2071.0,2070.0,1.20772946]
[1771086182793,1.66958906,2071.0,2070.0,1.20772946]
[1771086182969,0.46244276,2070.9,2070.0,1.595]
[1771086184301,1.20726289,2070.8,2070.0,2.80269171]
[1771086184606,4.82858522,2071.2,2070.0,3.27918895]
[1771086184607,5.29056946,2071.2,2070.0,3.27918895]
[1771086184896,5.29056946,2071.2,2070.1,0.47649724]
[1771086185795,0.46244276,2071.1,2070.1,0.47649724]
[1771086186585,1.2071463,2071.0,2070.2,2.80061279]
[1771086186784,1.2071463,2071.0,2070.2,1.593]
[1771086187499,1.2071463,2071.0,2070.2,2.06949724]
[1771086187873,1.20702974,2071.2,2070.3,0.47649724]
[1771086188781,1.20702974,2071.2,2070.4,1.20749613]
[1771086189887,1.20702974,2071.2,2070.2,1.591]
[1771086189888,0.46244276,2071.1,2070.2,1.591]
[1771086190786,1.2071463,2071.0,2070.2,2.7985995]
[1771086191283,0.46244276,2070.9,2069.9,1.20778781]
[1771086191482,0.46244276,2070.9,2070.0,1.591]
[1771086192776,0.48695445,2070.7,2069.7,0.001]
[1771086192972,0.48695445,2070.7,2069.7,1.70289596]
[1771086193202,1.20726289,2070.8,2069.8,0.45443047]
[1771086193776,1.20724151,2070.9,2069.8,0.45443047]
[1771086194777,5.31568026,2071.0,2069.9,1.20778781]
[1771086194978,0.48695445,2070.9,2069.9,1.20778781]
[1771086196106,0.48695445,2070.9,2069.8,1.589]
[1771086196807,1.69421734,2070.8,2069.8,1.589]
[1771086197106,0.48695445,2070.7,2069.8,2.79683927]
[1771086198919,1.2073795,2070.6,2069.8,1.20783927]
[1771086199121,1.2073795,2070.6,2069.8,3.24926974]
[1771086199310,1.20720459,2070.9,2069.9,0.45443047]
[1771086201112,5.31507721,2071.2,2070.1,0.45443047]
[1771086202123,4.82812276,2071.2,2070.1,0.45443047]
[1771086202302,5.31507721,2071.2,2070.1,0.45443047]
[1771086203190,0.48695445,2071.1,2070.2,1.20761279]
[1771086203390,0.48695445,2071.1,2070.3,1.586]
[1771086204718,1.20702974,2071.2,2070.4,0.45443047]
[1771086204919,0.48695445,2071.1,2070.3,1.586]
[1771086205090,0.48695445,2071.1,2070.2,1.20761279]
[1771086205400,1.2071463,2071.0,2070.4,1.20749613]
[1771086207289,1.20702974,2071.2,2070.4,1.20749613]
[1771086207716,2.07711616,2071.3,2070.5,0.45443047]
[1771086207896,1.20811616,2071.3,2070.5,0.45443047]
[1771086208215,0.0011,2071.3,2070.5,0.45443047]
[1771086209315,0.0011,2071.3,2070.6,1.66180997]
[1771086209839,0.0011,2071.3,2070.7,0.45443047]
[1771086210031,0.0011,2071.3,2070.8,2.03843047]
[1771086210203,0.0011,2071.3,2070.9,0.45443047]
[1771086211904,0.0011,2071.3,2070.9,1.66163011]
[1771086212229,0.0011,2071.3,2071.0,1.584]
[1771086212439,0.0011,2071.3,2070.7,0.45443047]
[1771086212631,0.0011,2071.3,2070.9,1.584]
[1771086214859,0.48695445,2071.2,2070.0,1.66210159]